[Event "9th RTU Rapid 2019"]
[Site "Riga"]
[Date "2019.08.04"]
[Round "4.21"]
[White "Afanasiev, Vadim"]
[Black "Efremov, Vladislav"]
[Result "1/2-1/2"]
[WhiteElo "2241"]
[BlackElo "1956"]
[PlyCount "128"]
[EventDate "2019.08.05"]
[EventType "swiss"]
[EventCountry "LAT"]
[TimeControl "5400+30"]
[WhiteClock "0:00:37"]
[BlackClock "0:00:08"]

1. d4 {[%emt 1:15:23]} Nf6 {[%emt 1:15:21]} 2. c4 {[%emt 0:00:26]} e6 {[%emt 0:00:27]} 3. Nc3 {[%emt 0:00:27]} Bb4 {[%emt 0:00:26]} 4. g3 {[%emt 0:00:27]} c5 {[%emt 0:00:43]} 5. Nf3 {[%emt 0:00:27]} cxd4 {[%emt 0:00:44]} 6. Nxd4 {[%emt 0:00:29]} Nc6 {[%emt 0:00:49]} 7. Bg2 {[%emt 0:01:50]} O-O {[%emt 0:01:18]} 8. O-O {[%emt 0:00:35]} a6 {[%emt 0:00:38]} 9. e4 {[%emt 0:02:48]} Bc5 {[%emt 0:01:46]} 10. Nb3 {[%emt 0:00:42]} Be7 {[%emt 0:00:45]} 11. c5 {[%emt 0:00:57]} d6 {[%emt 0:01:34]} 12. cxd6 {[%emt 0:01:06]} Bxd6 {[%emt 0:01:19]} 13. Be3 {[%emt 0:02:25]} e5 {[%emt 0:00:51]} 14. h3 {[%emt 0:01:44]} Qe7 {[%emt 0:00:41]} 15. Nd5 {[%emt 0:00:32]} Nxd5 {[%emt 0:00:38]} 16. exd5 {[%emt 0:00:27]} Nb8 {[%emt 0:00:43]} 17. Rc1 {[%emt 0:01:18]} Nd7 {[%emt 0:01:51]} 18. Na5 {[%emt 0:00:50]} b5 {[%emt 0:04:17]} 19. Nc6 {[%emt 0:00:46]} Qe8 {[%emt 0:00:28]} 20. b4 {[%emt 0:02:12]} f5 {[%emt 0:00:54]} 21. Bc5 {[%emt 0:02:07]} Rf6 {[%emt 0:00:34]} 22. Re1 {[%emt 0:00:43]} e4 {[%emt 0:01:15]} 23. Nd4 {[%emt 0:01:01]} Ne5 {[%emt 0:00:38]} 24. f4 {[%emt 0:00:48]} Nf7 {[%emt 0:01:11]} 25. a4 {[%emt 0:01:15]} Bd7 {[%emt 0:00:50]} 26. axb5 {[%emt 0:00:29]} axb5 {[%emt 0:00:27]} 27. Ra1 {[%emt 0:00:29]} Rc8 {[%emt 0:00:48]} 28. Nb3 {[%emt 0:00:38]} Rg6 {[%emt 0:00:46]} 29. Kh2 {[%emt 0:00:29]} Ra8 {[%emt 0:01:02]} 30. Qd4 {[%emt 0:00:45]} Rxa1 {[%emt 0:00:44]} 31. Rxa1 {[%emt 0:00:27]} Qb8 {[%emt 0:00:27]} 32. Qe3 {[%emt 0:00:40]} Nd8 {[%emt 0:00:44]} 33. Nd4 {[%emt 0:00:36]} Nb7 {[%emt 0:00:29]} 34. Nb3 {[%emt 0:00:29]} Be8 {[%emt 0:00:34]} 35. Rc1 {[%emt 0:00:30]} Bf7 {[%emt 0:00:27]} 36. Rd1 {[%emt 0:00:31]} Qd8 {[%emt 0:00:31]} 37. Bf1 {[%emt 0:00:30]} Qd7 {[%emt 0:00:34]} 38. Be2 {[%emt 0:00:33]} Rh6 {[%emt 0:00:30]} 39. Kg2 {[%emt 0:00:28]} Rg6 {[%emt 0:00:35]} 40. Kh2 {[%emt 0:00:27]} Rh6 {[%emt 0:00:26]} 41. Kg2 {[%emt 0:00:26]} Rg6 {[%emt 0:00:32]} 42. Kh2 {[%emt 0:00:29]} Rh6 {[%emt 0:00:27]} 43. Bf1 {[%emt 0:00:30]} Rg6 {[%emt 0:00:27]} 44. Qe2 {[%emt 0:00:29]} Be8 {[%emt 0:00:35]} 45. Qf2 {[%emt 0:00:34]} Qc7 {[%emt 0:00:31]} 46. Rc1 {[%emt 0:00:31]} Qd7 {[%emt 0:00:26]} 47. Be2 {[%emt 0:00:31]} Bxc5 {[%emt 0:00:30]} 48. Nxc5 {[%emt 0:00:36]} Qxd5 {[%emt 0:00:27]} 49. Nxb7 {[%emt 0:00:30]} Qxb7 {[%emt 0:00:26]} 50. Rc5 {[%emt 0:00:29]} Rf6 {[%emt 0:00:27]} 51. Qd4 {[%emt 0:00:27]} Qd7 {[%emt 0:00:37]} 52. Rd5 {[%emt 0:00:31]} Qc7 {[%emt 0:00:34]} 53. Rd8 {[%emt 0:00:31]} Rf8 {[%emt 0:00:26]} 54. Qd5+ {[%emt 0:00:32]} Kh8 {[%emt 0:00:39]} 55. Bxb5 {[%emt 0:00:32]} Qc2+ {[%emt 0:00:26]} 56. Kg1 {[%emt 0:00:26]} Qb1+ {[%emt 0:00:32]} 57. Kf2 {[%emt 0:00:32]} Qb2+ {[%emt 0:00:28]} 58. Kg1 {[%emt 0:00:31]} Qb1+ {[%emt 0:00:27]} 59. Kf2 {[%emt 0:00:26]} Qb2+ {[%emt 0:00:26]} 60. Kg1 {[%emt 0:00:08]} Qb1+ {[%emt 0:00:27]} 61. Kf2 {[%emt 0:00:53]} Qb2+ {[%emt 0:00:26]} 62. Kg1 {[%emt 0:00:30]} Qb1+ {[%emt 0:00:26]} 63. Kf2 {[%emt 0:00:32]} Qb2+ {[%emt 0:00:26]} 64. Be2 {[%emt 0:00:07]} Qxb4 {[%emt 0:00:02]} 1/2-1/2

[Event "9th RTU Rapid 2019"]
[Site "Riga"]
[Date "2019.08.04"]
[Round "4.22"]
[White "Wedda, Dries"]
[Black "Indricans, Vadims"]
[Result "1-0"]
[WhiteElo "2234"]
[BlackElo "1878"]
[PlyCount "89"]
[EventDate "2019.08.05"]
[EventType "swiss"]
[EventCountry "LAT"]
[TimeControl "5400+30"]
[WhiteClock "0:08:51"]
[BlackClock "0:02:29"]

1. d4 {[%emt 1:15:22]} Nf6 {[%emt 1:15:22]} 2. c4 {[%emt 0:00:26]} e6 {[%emt 0:00:26]} 3. Nf3 {[%emt 0:00:26]} d5 {[%emt 0:00:27]} 4. g3 {[%emt 0:00:27]} c6 {[%emt 0:00:40]} 5. Bg2 {[%emt 0:00:28]} Be7 {[%emt 0:00:32]} 6. O-O {[%emt 0:00:27]} O-O {[%emt 0:00:27]} 7. Qc2 {[%emt 0:00:27]} dxc4 {[%emt 0:00:27]} 8. Qxc4 {[%emt 0:00:34]} Nbd7 {[%emt 0:00:29]} 9. Nc3 {[%emt 0:00:42]} Nb6 {[%emt 0:00:37]} 10. Qd3 {[%emt 0:00:27]} c5 {[%emt 0:00:40]} 11. Rd1 {[%emt 0:01:00]} cxd4 {[%emt 0:00:38]} 12. Nxd4 {[%emt 0:00:31]} e5 {[%emt 0:00:31]} 13. Nf5 {[%emt 0:00:30]} Bxf5 {[%emt 0:00:36]} 14. Qxf5 {[%emt 0:00:27]} Qc7 {[%emt 0:00:32]} 15. Bg5 {[%emt 0:02:09]} Rad8 {[%emt 0:01:25]} 16. Bxf6 {[%emt 0:00:36]} Bxf6 {[%emt 0:00:48]} 17. Be4 {[%emt 0:00:27]} Rfe8 {[%emt 0:00:26]} 18. Qxh7+ {[%emt 0:00:42]} Kf8 {[%emt 0:00:26]} 19. Nd5 {[%emt 0:02:33]} Nxd5 {[%emt 0:00:37]} 20. Bxd5 {[%emt 0:00:28]} e4 {[%emt 0:01:51]} 21. Bxe4 {[%emt 0:02:04]} Bxb2 {[%emt 0:00:30]} 22. Rab1 {[%emt 0:00:32]} Rxd1+ {[%emt 0:00:27]} 23. Rxd1 {[%emt 0:00:26]} g6 {[%emt 0:00:37]} 24. Bxg6 {[%emt 0:00:42]} Rxe2 {[%emt 0:00:44]} 25. Bh5 {[%emt 0:01:24]} Re6 {[%emt 0:02:08]} 26. Rd8+ {[%emt 0:03:38]} Re8 {[%emt 0:00:38]} 27. Rxe8+ {[%emt 0:01:12]} Kxe8 {[%emt 0:00:26]} 28. Qg8+ {[%emt 0:00:27]} Kd7 {[%emt 0:00:31]} 29. Qxf7+ {[%emt 0:00:27]} Kd6 {[%emt 0:00:40]} 30. Qxc7+ {[%emt 0:00:45]} Kxc7 {[%emt 0:00:27]} 31. Bf7 {[%emt 0:00:33]} b5 {[%emt 0:00:31]} 32. h4 {[%emt 0:00:27]} a5 {[%emt 0:00:27]} 33. g4 {[%emt 0:00:42]} a4 {[%emt 0:00:31]} 34. Kg2 {[%emt 0:00:51]} Kd6 {[%emt 0:00:37]} 35. f4 {[%emt 0:00:40]} Ke7 {[%emt 0:00:49]} 36. Bg8 {[%emt 0:00:30]} b4 {[%emt 0:00:33]} 37. Kf3 {[%emt 0:00:36]} Kd6 {[%emt 0:00:38]} 38. g5 {[%emt 0:00:44]} Ke7 {[%emt 0:01:12]} 39. h5 {[%emt 0:00:50]} Kf8 {[%emt 0:00:29]} 40. Bc4 {[%emt 0:00:28]} Kg7 {[%emt 0:00:27]} 41. Kg4 {[%emt 0:00:39]} Bc1 {[%emt 0:00:28]} 42. f5 {[%emt 0:00:47]} Bd2 {[%emt 0:00:28]} 43. f6+ {[%emt 0:00:28]} Kf8 {[%emt 0:00:27]} 44. g6 {[%emt 0:00:28]} Bh6 {[%emt 0:00:27]} 45. Kf5 {[%emt 0:00:32]} 1-0

[Event "9th RTU Rapid 2019"]
[Site "Riga"]
[Date "2019.08.04"]
[Round "4.23"]
[White "Vedrickas, Tautvydas"]
[Black "Feldmanis, Arturs"]
[Result "1-0"]
[WhiteElo "2231"]
[BlackElo "1875"]
[PlyCount "93"]
[EventDate "2019.08.05"]
[EventType "swiss"]
[EventCountry "LAT"]
[TimeControl "5400+30"]
[WhiteClock "0:00:33"]
[BlackClock "0:00:35"]

1. d4 {[%emt 1:15:29]} c5 {[%emt 1:15:25]} 2. d5 {[%emt 0:00:28]} d6 {[%emt 0:00:27]} 3. c4 {[%emt 0:00:31]} b5 {[%emt 0:00:29]} 4. a4 {[%emt 0:00:43]} b4 {[%emt 0:00:42]} 5. e4 {[%emt 0:00:30]} g6 {[%emt 0:00:53]} 6. f4 {[%emt 0:00:35]} Bg7 {[%emt 0:00:33]} 7. Nf3 {[%emt 0:00:28]} Bg4 {[%emt 0:00:46]} 8. Be2 {[%emt 0:00:30]} Bxf3 {[%emt 0:00:51]} 9. Bxf3 {[%emt 0:00:27]} Bd4 {[%emt 0:00:27]} 10. Qe2 {[%emt 0:00:33]} Nd7 {[%emt 0:01:01]} 11. Nd2 {[%emt 0:00:30]} a5 {[%emt 0:01:55]} 12. Nb3 {[%emt 0:00:34]} Bg7 {[%emt 0:00:27]} 13. O-O {[%emt 0:00:31]} Qc7 {[%emt 0:01:02]} 14. e5 {[%emt 0:01:13]} O-O-O {[%emt 0:04:01]} 15. e6 {[%emt 0:00:45]} fxe6 {[%emt 0:01:05]} 16. dxe6 {[%emt 0:00:30]} Nb8 {[%emt 0:00:48]} 17. Qe4 {[%emt 0:00:58]} Qa7 {[%emt 0:01:23]} 18. Nxa5 {[%emt 0:00:46]} d5 {[%emt 0:00:28]} 19. cxd5 {[%emt 0:00:40]} Qxa5 {[%emt 0:00:28]} 20. d6 {[%emt 0:00:37]} Bd4+ {[%emt 0:01:04]} 21. Kh1 {[%emt 0:00:29]} Qb6 {[%emt 0:00:30]} 22. a5 {[%emt 0:00:43]} Qa6 {[%emt 0:00:41]} 23. d7+ {[%emt 0:01:19]} Kc7 {[%emt 0:01:09]} 24. Qe1 {[%emt 0:04:47]} Nf6 {[%emt 0:00:48]} 25. f5 {[%emt 0:00:38]} Nfxd7 {[%emt 0:01:27]} 26. Bf4+ {[%emt 0:01:35]} Ne5 {[%emt 0:00:33]} 27. Bxe5+ {[%emt 0:00:46]} Bxe5 {[%emt 0:00:29]} 28. Qxe5+ {[%emt 0:00:28]} Qd6 {[%emt 0:00:28]} 29. Qe4 {[%emt 0:00:49]} Qc6 {[%emt 0:00:37]} 30. Qe3 {[%emt 0:01:07]} Qb5 {[%emt 0:01:10]} 31. Qe5+ {[%emt 0:01:49]} Kc8 {[%emt 0:00:30]} 32. Rfc1 {[%emt 0:00:41]} Na6 {[%emt 0:01:06]} 33. Be2 {[%emt 0:00:29]} Qc6 {[%emt 0:00:35]} 34. Bxa6+ {[%emt 0:01:13]} Qxa6 {[%emt 0:00:27]} 35. Qxc5+ {[%emt 0:00:59]} Kb8 {[%emt 0:00:34]} 36. Qxb4+ {[%emt 0:00:28]} Ka8 {[%emt 0:00:32]} 37. Qe4+ {[%emt 0:00:34]} Qb7 {[%emt 0:00:36]} 38. Rc6 {[%emt 0:01:29]} Rd6 {[%emt 0:00:45]} 39. Rac1 {[%emt 0:00:30]} Rhd8 {[%emt 0:00:39]} 40. Rxd6 {[%emt 0:01:10]} Qxe4 {[%emt 0:00:42]} 41. Rxd8+ {[%emt 0:00:28]} Kb7 {[%emt 0:00:30]} 42. Rd7+ {[%emt 0:00:35]} Ka6 {[%emt 0:00:29]} 43. Rxe7 {[%emt 0:00:30]} Qf4 {[%emt 0:00:58]} 44. Rec7 {[%emt 0:00:32]} Qxf5 {[%emt 0:00:37]} 45. R7c6+ {[%emt 0:00:32]} Ka7 {[%emt 0:00:28]} 46. e7 {[%emt 0:00:28]} Qf7 {[%emt 0:00:52]} 47. Rc8 {[%emt 0:00:29]} 1-0

[Event "9th RTU Rapid 2019"]
[Site "Riga"]
[Date "2019.08.04"]
[Round "4.24"]
[White "Bagatais, Janis"]
[Black "Bracker, Arne"]
[Result "0-1"]
[WhiteElo "1946"]
[BlackElo "2227"]
[PlyCount "54"]
[EventDate "2019.08.05"]
[EventType "swiss"]
[EventCountry "LAT"]
[TimeControl "5400+30"]
[WhiteClock "0:03:32"]
[BlackClock "0:02:05"]

1. e4 {[%emt 1:15:22]} e5 {[%emt 1:15:22]} 2. Nf3 {[%emt 0:00:28]} Nc6 {[%emt 0:00:27]} 3. Bc4 {[%emt 0:00:28]} Nf6 {[%emt 0:00:28]} 4. d3 {[%emt 0:00:27]} Bc5 {[%emt 0:00:27]} 5. O-O {[%emt 0:00:29]} O-O {[%emt 0:00:34]} 6. c3 {[%emt 0:00:29]} d6 {[%emt 0:00:31]} 7. Re1 {[%emt 0:00:30]} a6 {[%emt 0:01:38]} 8. Bb3 {[%emt 0:00:53]} Ba7 {[%emt 0:00:37]} 9. Nbd2 {[%emt 0:00:35]} Ng4 {[%emt 0:00:32]} 10. Re2 {[%emt 0:00:47]} Kh8 {[%emt 0:00:29]} 11. h3 {[%emt 0:01:46]} Nh6 {[%emt 0:00:30]} 12. Nf1 {[%emt 0:04:48]} f5 {[%emt 0:00:28]} 13. Bxh6 {[%emt 0:00:59]} gxh6 {[%emt 0:00:28]} 14. exf5 {[%emt 0:00:36]} Bxf5 {[%emt 0:00:54]} 15. Kh2 {[%emt 0:02:16]} Qf6 {[%emt 0:02:19]} 16. Ne3 {[%emt 0:01:47]} Rae8 {[%emt 0:01:25]} 17. Nxf5 {[%emt 0:00:52]} Qxf5 {[%emt 0:00:27]} 18. Qd2 {[%emt 0:00:36]} Qf6 {[%emt 0:01:48]} 19. Rae1 {[%emt 0:01:47]} Re7 {[%emt 0:00:54]} 20. d4 {[%emt 0:00:38]} Rg7 {[%emt 0:00:38]} 21. dxe5 {[%emt 0:01:22]} Rxg2+ {[%emt 0:00:45]} 22. Kxg2 {[%emt 0:00:32]} Qxf3+ {[%emt 0:00:30]} 23. Kg1 {[%emt 0:00:43]} Qg3+ {[%emt 0:02:11]} 24. Kf1 {[%emt 0:00:29]} Qxh3+ {[%emt 0:00:27]} 25. Kg1 {[%emt 0:00:26]} Nxe5 {[%emt 0:03:51]} 26. Rxe5 {[%emt 0:00:33]} Qg3+ {[%emt 0:00:51]} 27. Kh1 {[%emt 0:00:47]} Qh4+ {[%emt 0:00:27]} 0-1

[Event "9th RTU Rapid 2019"]
[Site "Riga"]
[Date "2019.08.04"]
[Round "4.25"]
[White "Damen, Jip"]
[Black "Korolev, Alexandr"]
[Result "1-0"]
[WhiteElo "2179"]
[BlackElo "2102"]
[PlyCount "77"]
[EventDate "2019.08.05"]
[EventType "swiss"]
[EventCountry "LAT"]
[TimeControl "5400+30"]
[WhiteClock "0:13:44"]
[BlackClock "0:13:28"]

1. e4 {[%emt 1:15:21]} e5 {[%emt 1:15:22]} 2. Nf3 {[%emt 0:00:27]} Nf6 {[%emt 0:00:27]} 3. Nxe5 {[%emt 0:00:29]} Nxe4 {[%emt 0:00:26]} 4. Qe2 {[%emt 0:00:29]} Qe7 {[%emt 0:00:28]} 5. Qxe4 {[%emt 0:00:27]} d6 {[%emt 0:00:26]} 6. d4 {[%emt 0:00:36]} dxe5 {[%emt 0:00:27]} 7. dxe5 {[%emt 0:00:26]} Nc6 {[%emt 0:00:27]} 8. Nc3 {[%emt 0:00:43]} Qxe5 {[%emt 0:00:28]} 9. Qxe5+ {[%emt 0:00:28]} Nxe5 {[%emt 0:00:26]} 10. Bf4 {[%emt 0:00:30]} Bd6 {[%emt 0:00:26]} 11. Bg3 {[%emt 0:01:12]} Bf5 {[%emt 0:00:55]} 12. O-O-O {[%emt 0:00:29]} a6 {[%emt 0:00:58]} 13. Bxe5 {[%emt 0:00:35]} Bxe5 {[%emt 0:00:27]} 14. Re1 {[%emt 0:00:25]} f6 {[%emt 0:01:46]} 15. f4 {[%emt 0:00:27]} O-O-O {[%emt 0:00:34]} 16. fxe5 {[%emt 0:00:27]} Rhe8 {[%emt 0:00:26]} 17. Bc4 {[%emt 0:00:57]} fxe5 {[%emt 0:00:27]} 18. Rhf1 {[%emt 0:00:31]} Bg6 {[%emt 0:00:26]} 19. Bf7 {[%emt 0:00:35]} Re7 {[%emt 0:00:38]} 20. Bxg6 {[%emt 0:00:29]} hxg6 {[%emt 0:00:26]} 21. Re4 {[%emt 0:00:32]} Rd4 {[%emt 0:00:28]} 22. Rfe1 {[%emt 0:00:31]} Rxe4 {[%emt 0:00:29]} 23. Rxe4 {[%emt 0:00:29]} Kd7 {[%emt 0:00:32]} 24. Rg4 {[%emt 0:00:34]} Re6 {[%emt 0:00:26]} 25. Ne4 {[%emt 0:00:26]} Kc6 {[%emt 0:00:28]} 26. c4 {[%emt 0:00:29]} b5 {[%emt 0:00:26]} 27. cxb5+ {[%emt 0:00:30]} axb5 {[%emt 0:00:26]} 28. Kd2 {[%emt 0:00:30]} Kd5 {[%emt 0:00:26]} 29. Nc3+ {[%emt 0:00:26]} Kc5 {[%emt 0:00:26]} 30. b4+ {[%emt 0:00:38]} Kb6 {[%emt 0:00:33]} 31. Ne4 {[%emt 0:00:31]} Kc6 {[%emt 0:00:30]} 32. Kc3 {[%emt 0:00:35]} Kd5 {[%emt 0:00:26]} 33. Kd3 {[%emt 0:00:44]} c6 {[%emt 0:00:44]} 34. Nc3+ {[%emt 0:00:31]} Kd6 {[%emt 0:00:27]} 35. Ke4 {[%emt 0:00:30]} Rf6 {[%emt 0:00:27]} 36. a4 {[%emt 0:00:44]} bxa4 {[%emt 0:00:27]} 37. Nxa4 {[%emt 0:00:26]} Ke6 {[%emt 0:00:42]} 38. Nc5+ {[%emt 0:00:26]} Kd6 {[%emt 0:00:27]} 39. Nd3 {[%emt 0:00:27]} 1-0

[Event "9th RTU Rapid 2019"]
[Site "Riga"]
[Date "2019.08.04"]
[Round "4.26"]
[White "Alvarado Ascanio, Francisco"]
[Black "Isakovs, Janis"]
[Result "1-0"]
[WhiteElo "2166"]
[BlackElo "1923"]
[PlyCount "59"]
[EventDate "2019.08.05"]
[EventType "swiss"]
[EventCountry "LAT"]
[TimeControl "5400+30"]
[WhiteClock "0:01:19"]
[BlackClock "0:02:15"]

1. d4 {[%emt 1:15:21]} c5 {[%emt 1:15:22]} 2. d5 {[%emt 0:00:27]} e6 {[%emt 0:00:25]} 3. c4 {[%emt 0:00:27]} exd5 {[%emt 0:00:26]} 4. cxd5 {[%emt 0:00:26]} d6 {[%emt 0:00:26]} 5. Nc3 {[%emt 0:00:31]} a6 {[%emt 0:00:06]} 6. a4 {[%emt 0:00:36]} g6 {[%emt 0:00:46]} 7. Nf3 {[%emt 0:00:30]} Bg7 {[%emt 0:00:26]} 8. Nd2 {[%emt 0:00:33]} Nd7 {[%emt 0:00:38]} 9. Nc4 {[%emt 0:00:37]} Ne5 {[%emt 0:00:29]} 10. Na3 {[%emt 0:01:39]} f5 {[%emt 0:01:13]} 11. f4 {[%emt 0:01:54]} Nf7 {[%emt 0:01:03]} 12. e3 {[%emt 0:01:15]} Nf6 {[%emt 0:00:42]} 13. Bd3 {[%emt 0:00:28]} O-O {[%emt 0:00:36]} 14. O-O {[%emt 0:00:28]} Re8 {[%emt 0:01:03]} 15. Qf3 {[%emt 0:00:30]} Bd7 {[%emt 0:00:37]} 16. Bd2 {[%emt 0:00:38]} Rb8 {[%emt 0:01:39]} 17. Rab1 {[%emt 0:01:58]} Ne4 {[%emt 0:07:29]} 18. Nxe4 {[%emt 0:01:42]} fxe4 {[%emt 0:00:26]} 19. Bxe4 {[%emt 0:00:28]} Bxa4 {[%emt 0:01:15]} 20. Bd3 {[%emt 0:02:16]} Bd7 {[%emt 0:00:33]} 21. Nc4 {[%emt 0:02:43]} b5 {[%emt 0:00:48]} 22. Na5 {[%emt 0:00:31]} Qb6 {[%emt 0:01:32]} 23. b3 {[%emt 0:01:07]} Re7 {[%emt 0:01:29]} 24. Kh1 {[%emt 0:01:18]} Rf8 {[%emt 0:00:32]} 25. Nc6 {[%emt 0:01:19]} Bxc6 {[%emt 0:00:40]} 26. dxc6 {[%emt 0:00:26]} Ne5 {[%emt 0:00:43]} 27. Qd5+ {[%emt 0:00:30]} Kh8 {[%emt 0:00:29]} 28. fxe5 {[%emt 0:00:34]} Rxf1+ {[%emt 0:00:49]} 29. Rxf1 {[%emt 0:00:29]} Rxe5 {[%emt 0:00:29]} 30. Bc3 {[%emt 0:01:04]} 1-0

[Event "9th RTU Rapid 2019"]
[Site "Riga"]
[Date "2019.08.04"]
[Round "4.27"]
[White "Martinkus, Rolandas"]
[Black "Jonsson, Gauti Pall"]
[Result "1-0"]
[WhiteElo "2155"]
[BlackElo "2080"]
[PlyCount "141"]
[EventDate "2019.08.05"]
[EventType "swiss"]
[EventCountry "LAT"]
[TimeControl "5400+30"]
[WhiteClock "0:00:20"]
[BlackClock "0:03:20"]

1. c4 {[%emt 1:15:22]} e5 {[%emt 1:15:26]} 2. Nc3 {[%emt 0:00:29]} Nc6 {[%emt 0:00:31]} 3. g3 {[%emt 0:00:30]} f5 {[%emt 0:00:38]} 4. Bg2 {[%emt 0:00:34]} Nf6 {[%emt 0:00:27]} 5. e3 {[%emt 0:00:26]} Be7 {[%emt 0:00:40]} 6. Nge2 {[%emt 0:00:27]} O-O {[%emt 0:00:31]} 7. O-O {[%emt 0:00:28]} d6 {[%emt 0:00:34]} 8. d3 {[%emt 0:00:27]} Qe8 {[%emt 0:00:47]} 9. Rb1 {[%emt 0:00:27]} a5 {[%emt 0:00:28]} 10. a3 {[%emt 0:00:26]} Qh5 {[%emt 0:00:39]} 11. f4 {[%emt 0:00:37]} Qg6 {[%emt 0:01:21]} 12. b4 {[%emt 0:00:29]} axb4 {[%emt 0:00:28]} 13. axb4 {[%emt 0:00:28]} Be6 {[%emt 0:00:49]} 14. b5 {[%emt 0:00:35]} Nd8 {[%emt 0:01:35]} 15. Nd5 {[%emt 0:00:37]} Bxd5 {[%emt 0:00:34]} 16. cxd5 {[%emt 0:00:26]} Nf7 {[%emt 0:00:34]} 17. Nc3 {[%emt 0:01:15]} Nd7 {[%emt 0:01:35]} 18. e4 {[%emt 0:00:33]} exf4 {[%emt 0:00:45]} 19. gxf4 {[%emt 0:00:29]} Nh6 {[%emt 0:01:01]} 20. Qe1 {[%emt 0:01:06]} Nc5 {[%emt 0:00:50]} 21. Rf3 {[%emt 0:00:31]} Rae8 {[%emt 0:01:58]} 22. e5 {[%emt 0:00:42]} dxe5 {[%emt 0:00:42]} 23. fxe5 {[%emt 0:00:27]} Bg5 {[%emt 0:01:50]} 24. d4 {[%emt 0:00:49]} Ne4 {[%emt 0:01:23]} 25. Nxe4 {[%emt 0:01:00]} Bxc1 {[%emt 0:00:27]} 26. Rxc1 {[%emt 0:01:10]} fxe4 {[%emt 0:00:26]} 27. Rxf8+ {[%emt 0:01:18]} Rxf8 {[%emt 0:00:27]} 28. Qxe4 {[%emt 0:00:29]} Qe8 {[%emt 0:01:03]} 29. d6 {[%emt 0:01:01]} cxd6 {[%emt 0:00:39]} 30. exd6 {[%emt 0:00:26]} Qxe4 {[%emt 0:01:22]} 31. Bxe4 {[%emt 0:00:27]} Rd8 {[%emt 0:00:25]} 32. Bxb7 {[%emt 0:01:21]} Rxd6 {[%emt 0:00:29]} 33. d5 {[%emt 0:00:35]} Nf5 {[%emt 0:00:44]} 34. Bc6 {[%emt 0:00:37]} Rd8 {[%emt 0:00:51]} 35. b6 {[%emt 0:00:31]} Nd6 {[%emt 0:00:27]} 36. Ra1 {[%emt 0:02:06]} Kf7 {[%emt 0:01:37]} 37. Ra8 {[%emt 0:01:24]} Ke7 {[%emt 0:00:40]} 38. b7 {[%emt 0:00:33]} Nxb7 {[%emt 0:00:31]} 39. Bxb7 {[%emt 0:00:26]} Rd6 {[%emt 0:00:51]} 40. Bc6 {[%emt 0:00:31]} Rf6 {[%emt 0:01:00]} 41. Ra7+ {[%emt 0:00:37]} Kf8 {[%emt 0:00:26]} 42. Ra2 {[%emt 0:01:17]} Rg6+ {[%emt 0:00:36]} 43. Rg2 {[%emt 0:00:29]} Rh6 {[%emt 0:00:35]} 44. Kf1 {[%emt 0:00:54]} g5 {[%emt 0:00:36]} 45. Ke2 {[%emt 0:00:57]} Ke7 {[%emt 0:00:29]} 46. Kd3 {[%emt 0:00:37]} Kd6 {[%emt 0:00:29]} 47. Ke4 {[%emt 0:00:39]} Rh4+ {[%emt 0:00:29]} 48. Kf5 {[%emt 0:00:31]} h6 {[%emt 0:00:25]} 49. Re2 {[%emt 0:00:53]} Rf4+ {[%emt 0:00:37]} 50. Kg6 {[%emt 0:00:29]} Rh4 {[%emt 0:00:33]} 51. Ba8 {[%emt 0:00:49]} Rh3 {[%emt 0:00:46]} 52. Ra2 {[%emt 0:00:59]} g4 {[%emt 0:00:38]} 53. Kf5 {[%emt 0:00:56]} h5 {[%emt 0:00:39]} 54. Kg5 {[%emt 0:00:28]} Ke5 {[%emt 0:00:40]} 55. Re2+ {[%emt 0:00:32]} Kd6 {[%emt 0:00:28]} 56. Rd2 {[%emt 0:00:26]} g3 {[%emt 0:00:49]} 57. hxg3 {[%emt 0:00:05]} Rxg3+ 58. Kxh5 {[%emt 0:00:53]} Rg1 {[%emt 0:00:54]} 59. Bc6 {[%emt 0:00:31]} Rg8 {[%emt 0:00:29]} 60. Kh4 {[%emt 0:00:31]} Rg1 {[%emt 0:00:28]} 61. Kh3 {[%emt 0:00:26]} Rg8 {[%emt 0:00:32]} 62. Rg2 {[%emt 0:00:28]} Rd8 {[%emt 0:00:31]} 63. Kg3 {[%emt 0:00:29]} Rb8 {[%emt 0:00:49]} 64. Kf4 {[%emt 0:00:30]} Rf8+ {[%emt 0:00:26]} 65. Ke4 {[%emt 0:00:28]} Rf6 {[%emt 0:00:34]} 66. Rg8 {[%emt 0:00:46]} Rh6 {[%emt 0:00:28]} 67. Rd8+ {[%emt 0:00:30]} Kc5 {[%emt 0:00:29]} 68. Be8 {[%emt 0:00:53]} Ra6 {[%emt 0:00:40]} 69. Rc8+ {[%emt 0:00:31]} Kb4 {[%emt 0:00:32]} 70. Rc6 {[%emt 0:00:31]} Ra8 {[%emt 0:00:28]} 71. Bf7 {[%emt 0:00:30]} 1-0

[Event "9th RTU Rapid 2019"]
[Site "Riga"]
[Date "2019.08.04"]
[Round "4.28"]
[White "Germanovs, Georgijs"]
[Black "Low, Kevin"]
[Result "1/2-1/2"]
[WhiteElo "1911"]
[BlackElo "2153"]
[PlyCount "98"]
[EventDate "2019.08.05"]
[EventType "swiss"]
[EventCountry "LAT"]
[TimeControl "5400+30"]
[WhiteClock "0:00:34"]
[BlackClock "0:06:44"]

1. e4 {[%emt 1:15:22]} c5 {[%emt 1:15:21]} 2. d4 {[%emt 0:00:27]} cxd4 {[%emt 0:00:29]} 3. c3 {[%emt 0:00:26]} dxc3 {[%emt 0:00:26]} 4. Nxc3 {[%emt 0:00:27]} Nc6 {[%emt 0:00:27]} 5. Nf3 {[%emt 0:00:27]} d6 {[%emt 0:00:29]} 6. Bc4 {[%emt 0:00:26]} Nf6 {[%emt 0:00:34]} 7. e5 {[%emt 0:00:27]} Ng4 {[%emt 0:01:35]} 8. e6 {[%emt 0:02:20]} Bxe6 {[%emt 0:03:48]} 9. Bxe6 {[%emt 0:00:30]} fxe6 {[%emt 0:00:27]} 10. Ng5 {[%emt 0:00:46]} Nf6 {[%emt 0:00:58]} 11. Nxe6 {[%emt 0:00:29]} Qd7 {[%emt 0:00:30]} 12. Qe2 {[%emt 0:00:47]} Nd8 {[%emt 0:01:27]} 13. Nd4 {[%emt 0:00:56]} g6 {[%emt 0:01:02]} 14. Bg5 {[%emt 0:01:09]} Bg7 {[%emt 0:00:30]} 15. O-O-O {[%emt 0:00:38]} O-O {[%emt 0:00:33]} 16. h4 {[%emt 0:00:37]} Rc8 {[%emt 0:02:11]} 17. Bxf6 {[%emt 0:00:47]} Bxf6 {[%emt 0:00:28]} 18. h5 {[%emt 0:00:27]} g5 {[%emt 0:01:52]} 19. f4 {[%emt 0:00:33]} gxf4 {[%emt 0:01:29]} 20. h6 {[%emt 0:00:44]} Rf7 {[%emt 0:02:21]} 21. Kb1 {[%emt 0:01:14]} Nc6 {[%emt 0:00:27]} 22. Ne6 {[%emt 0:00:38]} Bxc3 {[%emt 0:01:17]} 23. bxc3 {[%emt 0:00:58]} Rf6 {[%emt 0:00:54]} 24. Nc5 {[%emt 0:01:05]} Qf5+ {[%emt 0:00:32]} 25. Ne4 {[%emt 0:00:29]} d5 {[%emt 0:00:53]} 26. Rxd5 {[%emt 0:00:30]} Qxd5 {[%emt 0:01:11]} 27. Nxf6+ {[%emt 0:00:27]} exf6 {[%emt 0:00:26]} 28. Qg4+ {[%emt 0:00:27]} Kf7 {[%emt 0:00:27]} 29. Qxc8 {[%emt 0:00:33]} Qd3+ {[%emt 0:00:56]} 30. Kb2 {[%emt 0:00:33]} Qd2+ {[%emt 0:00:27]} 31. Kb3 {[%emt 0:00:31]} Qd5+ {[%emt 0:00:42]} 32. Ka3 {[%emt 0:00:35]} Qc5+ {[%emt 0:00:35]} 33. Kb2 {[%emt 0:00:33]} Qf2+ {[%emt 0:00:29]} 34. Ka3 {[%emt 0:00:33]} Qc5+ {[%emt 0:00:39]} 35. Kb2 {[%emt 0:00:27]} Qf2+ {[%emt 0:00:32]} 36. Ka1 {[%emt 0:00:31]} Qc5 {[%emt 0:00:30]} 37. Qd7+ {[%emt 0:00:33]} Ne7 {[%emt 0:00:27]} 38. Qd3 {[%emt 0:00:26]} f5 {[%emt 0:00:31]} 39. Rb1 {[%emt 0:00:35]} b6 {[%emt 0:00:27]} 40. Re1 {[%emt 0:01:18]} b5 {[%emt 0:00:35]} 41. Qd4 {[%emt 0:00:35]} Qxd4 {[%emt 0:00:28]} 42. cxd4 {[%emt 0:00:26]} Nc6 {[%emt 0:00:30]} 43. d5 {[%emt 0:00:28]} Nb4 {[%emt 0:00:30]} 44. Re5 {[%emt 0:00:44]} Kf6 {[%emt 0:00:01]} 45. Re6+ {[%emt 0:00:54]} Kf7 {[%emt 0:00:50]} 46. Re5 {[%emt 0:01:07]} Kf6 {[%emt 0:00:26]} 47. Re6+ {[%emt 0:00:59]} Kf7 {[%emt 0:00:26]} 48. Re5 {[%emt 0:00:26]} Kf6 {[%emt 0:00:25]} 49. Re6+ {[%emt 0:00:26]} Kf7 {[%emt 0:00:26]} 1/2-1/2